[Event "Early-Titled-Tuesday-Blitz-October-10-2023"]
[Site "Chess.com"]
[Date "2023.10.10"]
[Round "11"]
[White "hawes33"]
[Black "campochess"]
[Result "0-1"]
[WhiteElo "2261"]
[BlackElo "2149"]
[TimeControl "180+1"]
[EndTime "10:03:57 PDT"]
[Termination "campochess won on time"]

1. e4 {[%clk 0:02:39.3]} 1... c5 {[%clk 0:02:57.9]} 2. Nc3 {[%clk 0:02:38.4]}
2... Nc6 {[%clk 0:02:57.8]} 3. g3 {[%clk 0:02:38.6]} 3... g6 {[%clk 0:02:57.9]}
4. Bg2 {[%clk 0:02:39.1]} 4... Bg7 {[%clk 0:02:57.8]} 5. d3 {[%clk 0:02:39.6]}
5... Nf6 {[%clk 0:02:57.5]} 6. Be3 {[%clk 0:02:39.6]} 6... d6 {[%clk 0:02:57.2]}
7. h3 {[%clk 0:02:39.3]} 7... O-O {[%clk 0:02:53.6]} 8. Qd2 {[%clk 0:02:39]}
8... Re8 {[%clk 0:02:52.2]} 9. Bh6 {[%clk 0:02:38.5]} 9... Bh8 {[%clk
0:02:50.9]} 10. Nge2 {[%clk 0:02:32.9]} 10... Rb8 {[%clk 0:02:50.3]} 11. O-O
{[%clk 0:02:31.1]} 11... b5 {[%clk 0:02:50.1]} 12. f4 {[%clk 0:02:30.5]} 12...
b4 {[%clk 0:02:49.7]} 13. Nd1 {[%clk 0:02:14.3]} 13... Nd7 {[%clk 0:02:48.8]}
14. c3 {[%clk 0:02:12.4]} 14... a5 {[%clk 0:02:47.6]} 15. g4 {[%clk 0:02:09.4]}
15... e5 {[%clk 0:02:44.3]} 16. f5 {[%clk 0:02:07.8]} 16... Nf8 {[%clk
0:02:32.9]} 17. Ne3 {[%clk 0:02:06.2]} 17... f6 {[%clk 0:02:16.5]} 18. Bxf8
{[%clk 0:02:01.2]} 18... Rxf8 {[%clk 0:02:14.1]} 19. Ng3 {[%clk 0:01:56.3]}
19... Bd7 {[%clk 0:02:11.9]} 20. Nd5 {[%clk 0:01:55.9]} 20... Ne7 {[%clk
0:02:09.9]} 21. fxg6 {[%clk 0:01:54.5]} 21... Nxg6 {[%clk 0:02:06.1]} 22. Nh5
{[%clk 0:01:52.3]} 22... Be6 {[%clk 0:02:00.6]} 23. c4 {[%clk 0:01:41]} 23...
Bxd5 {[%clk 0:01:59.9]} 24. exd5 {[%clk 0:01:41]} 24... a4 {[%clk 0:01:48.7]}
25. Be4 {[%clk 0:01:39.6]} 25... Rb7 {[%clk 0:01:37]} 26. Qf2 {[%clk 0:01:34]}
26... Rbf7 {[%clk 0:01:35]} 27. Ng3 {[%clk 0:01:30.9]} 27... Nf4 {[%clk
0:01:34.3]} 28. Kh2 {[%clk 0:01:26.9]} 28... Bg7 {[%clk 0:01:33.3]} 29. Qe3
{[%clk 0:01:24.3]} 29... Bh6 {[%clk 0:01:32.2]} 30. Nf5 {[%clk 0:01:21.9]} 30...
Bg7 {[%clk 0:01:23.4]} 31. Nxg7 {[%clk 0:00:51.2]} 31... Rxg7 {[%clk 0:01:22]}
32. Rxf4 {[%clk 0:00:34.9]} 32... exf4 {[%clk 0:01:19.9]} 33. Qxf4 {[%clk
0:00:35.8]} 33... Qe7 {[%clk 0:01:19.5]} 34. Rf1 {[%clk 0:00:29]} 34... Qe5
{[%clk 0:01:18.7]} 35. Kg3 {[%clk 0:00:27.2]} 35... Qxb2 {[%clk 0:01:16.1]} 36.
Qxd6 {[%clk 0:00:25.6]} 36... Qe5+ {[%clk 0:01:16]} 37. Qxe5 {[%clk 0:00:25]}
37... fxe5 {[%clk 0:01:15.9]} 38. Re1 {[%clk 0:00:21.8]} 38... Rgf7 {[%clk
0:01:08.2]} 0-1

[Event "Early-Titled-Tuesday-Blitz-October-10-2023"]
[Site "Chess.com"]
[Date "2023.10.10"]
[Round "11"]
[White "a-z30"]
[Black "esrosenberg"]
[Result "1-0"]
[WhiteElo "2474"]
[BlackElo "2373"]
[TimeControl "180+1"]
[EndTime "10:03:59 PDT"]
[Termination "a-z30 won by checkmate"]

1. c4 {[%clk 0:03:00.9]} 1... e6 {[%clk 0:02:58.4]} 2. d4 {[%clk 0:03:00.2]}
2... d5 {[%clk 0:02:59]} 3. Nc3 {[%clk 0:03:00]} 3... c5 {[%clk 0:02:59.6]} 4.
cxd5 {[%clk 0:02:55.7]} 4... cxd4 {[%clk 0:03:00]} 5. Qa4+ {[%clk 0:02:55]} 5...
Bd7 {[%clk 0:02:59.7]} 6. Qxd4 {[%clk 0:02:54.4]} 6... exd5 {[%clk 0:03:00.3]}
7. Nf3 {[%clk 0:02:46.9]} 7... Nf6 {[%clk 0:02:56.4]} 8. Bg5 {[%clk 0:02:34.3]}
8... Nc6 {[%clk 0:02:55.2]} 9. Qd1 {[%clk 0:02:23.4]} 9... Bb4 {[%clk
0:02:47.5]} 10. e3 {[%clk 0:02:22]} 10... Qa5 {[%clk 0:02:37.6]} 11. Bxf6 {[%clk
0:02:19.8]} 11... gxf6 {[%clk 0:02:37.7]} 12. Qd2 {[%clk 0:02:16.4]} 12... Rc8
{[%clk 0:02:31.2]} 13. Be2 {[%clk 0:02:03]} 13... Ne5 {[%clk 0:02:30.9]} 14. O-O
{[%clk 0:01:37.2]} 14... Rg8 {[%clk 0:02:14.2]} 15. Rfc1 {[%clk 0:01:08.8]}
15... Bc6 {[%clk 0:02:03.6]} 16. Nd4 {[%clk 0:01:00.4]} 16... Nc4 {[%clk
0:01:57.7]} 17. Bxc4 {[%clk 0:00:54.7]} 17... dxc4 {[%clk 0:01:57.8]} 18. Nxc6
{[%clk 0:00:54.5]} 18... Rxc6 {[%clk 0:01:57.5]} 19. Rd1 {[%clk 0:00:41.1]}
19... Rg6 {[%clk 0:01:31.5]} 20. Qd7+ {[%clk 0:00:33.4]} 20... Kf8 {[%clk
0:01:31.7]} 21. Qxb7 {[%clk 0:00:33]} 21... f5 {[%clk 0:01:23.8]} 22. Rd7 {[%clk
0:00:27.6]} 22... Rcf6 {[%clk 0:01:15.7]} 23. Nd5 {[%clk 0:00:24.2]} 23... c3
{[%clk 0:01:08.1]} 24. bxc3 {[%clk 0:00:18.8]} 24... Bxc3 {[%clk 0:01:07.4]} 25.
Rc1 {[%clk 0:00:18.3]} 25... Qxa2 {[%clk 0:00:51.2]} 26. Qc8+ {[%clk 0:00:15.9]}
26... Kg7 {[%clk 0:00:50.8]} 27. Qxc3 {[%clk 0:00:16.5]} 27... f4 {[%clk
0:00:44.8]} 28. Nxf6 {[%clk 0:00:14.1]} 28... fxe3 {[%clk 0:00:38.3]} 29. Ne4+
{[%clk 0:00:10]} 29... Kh6 {[%clk 0:00:38.1]} 30. Qxe3+ {[%clk 0:00:09.4]} 30...
Kh5 {[%clk 0:00:37.9]} 31. Qh3# {[%clk 0:00:08.1]} 1-0

[Event "Early-Titled-Tuesday-Blitz-October-10-2023"]
[Site "Chess.com"]
[Date "2023.10.10"]
[Round "11"]
[White "Happy1712Drummer"]
[Black "Casper"]
[Result "1-0"]
[WhiteElo "2372"]
[BlackElo "2425"]
[TimeControl "180+1"]
[EndTime "10:03:59 PDT"]
[Termination "Happy1712Drummer won on time"]

1. e4 {[%clk 0:03:00.9]} 1... c5 {[%clk 0:02:56.5]} 2. Nf3 {[%clk 0:03:00.1]}
2... d6 {[%clk 0:02:57.2]} 3. Bb5+ {[%clk 0:02:59.9]} 3... Nd7 {[%clk
0:02:56.1]} 4. O-O {[%clk 0:02:58.6]} 4... g5 {[%clk 0:02:56.3]} 5. h3 {[%clk
0:02:49]} 5... h5 {[%clk 0:02:54.8]} 6. Nxg5 {[%clk 0:02:36.3]} 6... e5 {[%clk
0:02:54.5]} 7. d3 {[%clk 0:02:29.4]} 7... Bh6 {[%clk 0:02:51.3]} 8. Nf3 {[%clk
0:02:22.2]} 8... a6 {[%clk 0:02:46.4]} 9. Bc4 {[%clk 0:02:15.9]} 9... Nb6 {[%clk
0:02:40.7]} 10. Bb3 {[%clk 0:02:13.6]} 10... Qf6 {[%clk 0:02:36.8]} 11. Nc3
{[%clk 0:02:07.5]} 11... Bxc1 {[%clk 0:02:16.7]} 12. Qxc1 {[%clk 0:02:05.9]}
12... Bxh3 {[%clk 0:02:15.6]} 13. Qg5 {[%clk 0:02:00.7]} 13... Be6 {[%clk
0:02:03.9]} 14. a4 {[%clk 0:01:27.2]} 14... Bxb3 {[%clk 0:01:34.3]} 15. cxb3
{[%clk 0:01:25.7]} 15... O-O-O {[%clk 0:01:33.1]} 16. a5 {[%clk 0:01:23.3]}
16... Nd7 {[%clk 0:01:30.9]} 17. Nd5 {[%clk 0:01:23.5]} 17... Qxg5 {[%clk
0:01:30.8]} 18. Nxg5 {[%clk 0:01:24.4]} 18... Rf8 {[%clk 0:01:28.5]} 19. b4
{[%clk 0:01:14.9]} 19... Rh6 {[%clk 0:01:16.2]} 20. f4 {[%clk 0:01:08.5]} 20...
Rg6 {[%clk 0:01:01.1]} 21. Nh3 {[%clk 0:00:59.3]} 21... cxb4 {[%clk 0:00:43.7]}
22. Rac1+ {[%clk 0:00:52.7]} 22... Nc5 {[%clk 0:00:38.4]} 23. fxe5 {[%clk
0:00:52.3]} 23... Kd7 {[%clk 0:00:34.8]} 24. d4 {[%clk 0:00:45.3]} 24... Nb3
{[%clk 0:00:30.9]} 25. Rc7+ {[%clk 0:00:44.7]} 25... Kd8 {[%clk 0:00:27.1]} 26.
Rxb7 {[%clk 0:00:42.8]} 26... Re8 {[%clk 0:00:22.1]} 27. Rfxf7 {[%clk
0:00:40.8]} 1-0

[Event "Early-Titled-Tuesday-Blitz-October-10-2023"]
[Site "Chess.com"]
[Date "2023.10.10"]
[Round "11"]
[White "Willi_Skibbe"]
[Black "Politov_Pavel"]
[Result "1-0"]
[WhiteElo "2202"]
[BlackElo "2061"]
[TimeControl "180+1"]
[EndTime "10:04:02 PDT"]
[Termination "Willi_Skibbe won on time"]

1. e4 {[%clk 0:03:00.9]} 1... c5 {[%clk 0:02:52.2]} 2. Nf3 {[%clk 0:02:59.1]}
2... d6 {[%clk 0:02:52.6]} 3. Bc4 {[%clk 0:02:58.3]} 3... Nf6 {[%clk 0:02:52.3]}
4. d3 {[%clk 0:02:57.6]} 4... e6 {[%clk 0:02:52.6]} 5. c3 {[%clk 0:02:56.5]}
5... d5 {[%clk 0:02:52.8]} 6. exd5 {[%clk 0:02:53.8]} 6... exd5 {[%clk
0:02:53.7]} 7. Bb3 {[%clk 0:02:54.3]} 7... Be7 {[%clk 0:02:52.6]} 8. O-O {[%clk
0:02:54]} 8... O-O {[%clk 0:02:52.8]} 9. d4 {[%clk 0:02:52.6]} 9... c4 {[%clk
0:02:48.6]} 10. Bc2 {[%clk 0:02:52.1]} 10... Nc6 {[%clk 0:02:48.2]} 11. h3
{[%clk 0:02:50.4]} 11... b5 {[%clk 0:02:48]} 12. Bf4 {[%clk 0:02:46.8]} 12...
Bd6 {[%clk 0:02:47.3]} 13. Ne5 {[%clk 0:02:43.7]} 13... Qc7 {[%clk 0:02:39.4]}
14. Re1 {[%clk 0:02:34.8]} 14... Be6 {[%clk 0:02:30.3]} 15. Nd2 {[%clk
0:02:33.9]} 15... b4 {[%clk 0:02:27.3]} 16. Ndf3 {[%clk 0:02:29.2]} 16... bxc3
{[%clk 0:02:19.1]} 17. bxc3 {[%clk 0:02:28.8]} 17... Rfe8 {[%clk 0:02:11.5]} 18.
Ba4 {[%clk 0:02:25.5]} 18... Bd7 {[%clk 0:02:04.5]} 19. Nxd7 {[%clk 0:02:18]}
19... Bxf4 {[%clk 0:01:44.2]} 20. Nde5 {[%clk 0:02:11.6]} 20... Bxe5 {[%clk
0:01:24.7]} 21. Nxe5 {[%clk 0:02:08.1]} 21... Rxe5 {[%clk 0:01:11.9]} 22. dxe5
{[%clk 0:02:06.8]} 22... Nxe5 {[%clk 0:01:12.8]} 23. Bc2 {[%clk 0:01:57.1]}
23... Re8 {[%clk 0:01:08.9]} 24. Qd4 {[%clk 0:01:52.3]} 24... Ne4 {[%clk
0:00:34.4]} 25. Bxe4 {[%clk 0:01:43.3]} 25... dxe4 {[%clk 0:00:30.4]} 26. Rxe4
{[%clk 0:01:42.9]} 26... f6 {[%clk 0:00:29.6]} 27. f4 {[%clk 0:01:37.9]} 27...
Rd8 {[%clk 0:00:26.5]} 28. Qe3 {[%clk 0:01:33.2]} 28... Nd3 {[%clk 0:00:08.4]}
29. Re8+ {[%clk 0:01:32.2]} 29... Kf7 {[%clk 0:00:06.8]} 30. Qe6+ {[%clk
0:01:31.9]} 30... Kg6 {[%clk 0:00:07.1]} 31. f5+ {[%clk 0:01:26]} 31... Kg5
{[%clk 0:00:03.6]} 32. Qe3+ {[%clk 0:01:23.1]} 32... Kxf5 {[%clk 0:00:03.3]} 33.
Rf1+ {[%clk 0:01:22.3]} 33... Kg6 {[%clk 0:00:03]} 34. Qe4+ {[%clk 0:01:19.8]}
34... Kh6 {[%clk 0:00:02.9]} 35. Rxd8 {[%clk 0:01:09.6]} 35... Qxd8 {[%clk
0:00:02.8]} 36. Qxc4 {[%clk 0:01:09.3]} 36... Ne5 {[%clk 0:00:01.3]} 37. Qd4
{[%clk 0:01:06.3]} 1-0

[Event "Early-Titled-Tuesday-Blitz-October-10-2023"]
[Site "Chess.com"]
[Date "2023.10.10"]
[Round "11"]
[White "gueraumasague"]
[Black "Zavgorodniy_Sergiy"]
[Result "0-1"]
[WhiteElo "2514"]
[BlackElo "2643"]
[TimeControl "180+1"]
[EndTime "10:04:09 PDT"]
[Termination "Zavgorodniy_Sergiy won on time"]

1. e4 {[%clk 0:02:57.3]} 1... e5 {[%clk 0:02:56.6]} 2. Nc3 {[%clk 0:02:58.2]}
2... d6 {[%clk 0:02:53.6]} 3. f4 {[%clk 0:02:47.9]} 3... Nf6 {[%clk 0:02:52.2]}
4. Nf3 {[%clk 0:02:47.2]} 4... Be7 {[%clk 0:02:51.7]} 5. fxe5 {[%clk 0:02:43]}
5... dxe5 {[%clk 0:02:52.6]} 6. Nxe5 {[%clk 0:02:40.3]} 6... O-O {[%clk
0:02:53.2]} 7. Nf3 {[%clk 0:02:25.3]} 7... Nc6 {[%clk 0:02:51.6]} 8. Bb5 {[%clk
0:02:24.5]} 8... Bc5 {[%clk 0:02:47.7]} 9. Bxc6 {[%clk 0:02:22.7]} 9... bxc6
{[%clk 0:02:48.6]} 10. d3 {[%clk 0:02:18.5]} 10... Ng4 {[%clk 0:02:43.9]} 11.
Qe2 {[%clk 0:02:09.9]} 11... Rb8 {[%clk 0:02:21.1]} 12. h3 {[%clk 0:02:03.8]}
12... Nf6 {[%clk 0:02:21.2]} 13. Na4 {[%clk 0:02:01.3]} 13... Qe7 {[%clk
0:02:13.2]} 14. Bg5 {[%clk 0:01:57.5]} 14... Bb4+ {[%clk 0:01:59.8]} 15. c3
{[%clk 0:01:51.1]} 15... Bd6 {[%clk 0:02:00.3]} 16. O-O {[%clk 0:01:34.5]} 16...
h6 {[%clk 0:01:52.5]} 17. Bh4 {[%clk 0:01:31.6]} 17... Re8 {[%clk 0:01:48.6]}
18. Rae1 {[%clk 0:01:21]} 18... g5 {[%clk 0:01:45.8]} 19. Nxg5 {[%clk
0:00:33.8]} 19... hxg5 {[%clk 0:01:46.7]} 20. Bxg5 {[%clk 0:00:34.7]} 20... Qe5
{[%clk 0:01:45.9]} 21. Bf4 {[%clk 0:00:35.3]} 21... Qe6 {[%clk 0:01:41.4]} 22.
e5 {[%clk 0:00:20.4]} 22... Bf8 {[%clk 0:01:41.3]} 23. Rf3 {[%clk 0:00:15.4]}
23... Nh7 {[%clk 0:01:38]} 24. Rg3+ {[%clk 0:00:15.2]} 24... Kh8 {[%clk
0:01:38.2]} 25. Qe4 {[%clk 0:00:13.7]} 25... Qf5 {[%clk 0:01:34.7]} 26. Qxc6
{[%clk 0:00:13.3]} 26... Bd7 {[%clk 0:01:35.2]} 27. Qa6 {[%clk 0:00:13]} 27...
Qxf4 {[%clk 0:01:34.7]} 28. Rf3 {[%clk 0:00:13]} 28... Qd2 {[%clk 0:01:27.3]}
29. Ref1 {[%clk 0:00:12.3]} 29... Be6 {[%clk 0:01:26.3]} 30. d4 {[%clk 0:00:11]}
30... Be7 {[%clk 0:01:19.4]} 31. Rxf7 {[%clk 0:00:10.2]} 31... Rg8 {[%clk
0:01:11.6]} 32. R7f2 {[%clk 0:00:05.5]} 32... Qh6 {[%clk 0:01:09.6]} 33. Kh2
{[%clk 0:00:04.6]} 33... Ng5 {[%clk 0:01:03.7]} 34. Rf6 {[%clk 0:00:01.8]} 34...
Bxf6 {[%clk 0:01:01.2]} 35. Rxf6 {[%clk 0:00:02.7]} 35... Nf3+ {[%clk 0:00:56]}
36. gxf3 {[%clk 0:00:01.5]} 36... Qd2+ {[%clk 0:00:55]} 0-1

[Event "Early-Titled-Tuesday-Blitz-October-10-2023"]
[Site "Chess.com"]
[Date "2023.10.10"]
[Round "11"]
[White "Eloist"]
[Black "borocotoajua"]
[Result "0-1"]
[WhiteElo "2440"]
[BlackElo "2567"]
[TimeControl "180+1"]
[EndTime "10:04:10 PDT"]
[Termination "borocotoajua won on time"]

1. e4 {[%clk 0:03:00.9]} 1... c6 {[%clk 0:02:59.8]} 2. Nf3 {[%clk 0:02:59.5]}
2... d5 {[%clk 0:03:00]} 3. Nc3 {[%clk 0:02:59.7]} 3... Bg4 {[%clk 0:02:59.5]}
4. d4 {[%clk 0:02:57]} 4... dxe4 {[%clk 0:02:56.6]} 5. Nxe4 {[%clk 0:02:56.3]}
5... Nd7 {[%clk 0:02:55.7]} 6. Ng3 {[%clk 0:02:53]} 6... Ngf6 {[%clk 0:02:51.4]}
7. h3 {[%clk 0:02:52.4]} 7... Bxf3 {[%clk 0:02:50.2]} 8. Qxf3 {[%clk 0:02:53.3]}
8... e6 {[%clk 0:02:47.8]} 9. Bd3 {[%clk 0:02:46.1]} 9... Bd6 {[%clk 0:02:43.2]}
10. O-O {[%clk 0:02:43.4]} 10... Qc7 {[%clk 0:02:43.1]} 11. Re1 {[%clk
0:02:40.5]} 11... O-O-O {[%clk 0:02:37.8]} 12. Bd2 {[%clk 0:02:37.2]} 12... Kb8
{[%clk 0:02:35.1]} 13. b4 {[%clk 0:02:31]} 13... Rhg8 {[%clk 0:02:21.9]} 14. c4
{[%clk 0:02:28]} 14... g5 {[%clk 0:02:15.8]} 15. c5 {[%clk 0:02:10.6]} 15...
Bxg3 {[%clk 0:02:03.6]} 16. fxg3 {[%clk 0:02:04.8]} 16... g4 {[%clk 0:01:52.2]}
17. hxg4 {[%clk 0:02:02]} 17... Nxg4 {[%clk 0:01:43.4]} 18. b5 {[%clk 0:01:35]}
18... cxb5 {[%clk 0:01:16.8]} 19. Rab1 {[%clk 0:01:13.8]} 19... a6 {[%clk
0:00:57]} 20. a4 {[%clk 0:01:12.5]} 20... Nxc5 {[%clk 0:00:35.1]} 21. Bxh7
{[%clk 0:00:25.6]} 21... Rg7 {[%clk 0:00:25.7]} 22. Bf4 {[%clk 0:00:24.7]} 22...
e5 {[%clk 0:00:23.6]} 23. dxe5 {[%clk 0:00:16.5]} 23... Ne6 {[%clk 0:00:22.4]}
24. Be4 {[%clk 0:00:08.5]} 24... b4 {[%clk 0:00:22.6]} 0-1

[Event "Early-Titled-Tuesday-Blitz-October-10-2023"]
[Site "Chess.com"]
[Date "2023.10.10"]
[Round "11"]
[White "MMAHDI2013"]
[Black "Journey_to_GrandMaster_YT"]
[Result "0-1"]
[WhiteElo "2480"]
[BlackElo "2627"]
[TimeControl "180+1"]
[EndTime "10:04:16 PDT"]
[Termination "Journey_to_GrandMaster_YT won by checkmate"]

1. c4 {[%clk 0:02:59.6]} 1... d6 {[%clk 0:03:00.9]} 2. d4 {[%clk 0:02:59.1]}
2... e5 {[%clk 0:03:01.8]} 3. dxe5 {[%clk 0:02:59.6]} 3... dxe5 {[%clk
0:03:02.7]} 4. Qxd8+ {[%clk 0:03:00]} 4... Kxd8 {[%clk 0:03:03.6]} 5. Nc3 {[%clk
0:03:00.9]} 5... Be6 {[%clk 0:03:04.1]} 6. b3 {[%clk 0:03:00.6]} 6... Nd7 {[%clk
0:03:00.8]} 7. Bb2 {[%clk 0:02:59.5]} 7... c6 {[%clk 0:03:00.7]} 8. O-O-O {[%clk
0:02:59.1]} 8... Kc7 {[%clk 0:03:00.9]} 9. Nf3 {[%clk 0:02:59.1]} 9... f6 {[%clk
0:03:01]} 10. h3 {[%clk 0:02:59.2]} 10... a5 {[%clk 0:02:59.5]} 11. e3 {[%clk
0:02:58.2]} 11... Bb4 {[%clk 0:02:55.1]} 12. g4 {[%clk 0:02:49.5]} 12... Ne7
{[%clk 0:02:53.7]} 13. Bd3 {[%clk 0:02:46]} 13... h5 {[%clk 0:02:52.6]} 14. Rhg1
{[%clk 0:02:15.3]} 14... hxg4 {[%clk 0:02:51.8]} 15. hxg4 {[%clk 0:02:16.2]}
15... Rh3 {[%clk 0:02:48.3]} 16. Be2 {[%clk 0:02:12.9]} 16... Ng6 {[%clk
0:02:13]} 17. Ne4 {[%clk 0:01:56.9]} 17... a4 {[%clk 0:02:08.7]} 18. a3 {[%clk
0:01:46.8]} 18... Be7 {[%clk 0:02:06.2]} 19. b4 {[%clk 0:01:43.9]} 19... Nb6
{[%clk 0:02:05.7]} 20. g5 {[%clk 0:01:14]} 20... Bxc4 {[%clk 0:01:42.9]} 21.
Bxc4 {[%clk 0:01:08.8]} 21... Nxc4 {[%clk 0:01:42.5]} 22. gxf6 {[%clk
0:01:08.6]} 22... gxf6 {[%clk 0:01:42.1]} 23. Rxg6 {[%clk 0:01:06.4]} 23... Rxf3
{[%clk 0:01:34.4]} 24. Rg7 {[%clk 0:01:06.9]} 24... Re8 {[%clk 0:01:33.6]} 25.
Nc5 {[%clk 0:01:06.7]} 25... Kc8 {[%clk 0:01:07.4]} 26. Ne6 {[%clk 0:01:03.3]}
26... Bd6 {[%clk 0:00:52.7]} 27. Nc5 {[%clk 0:00:52]} 27... Bxc5 {[%clk
0:00:45.9]} 28. bxc5 {[%clk 0:00:51]} 28... Rxf2 {[%clk 0:00:45.5]} 29. Rdd7
{[%clk 0:00:49.8]} 29... Rxb2 {[%clk 0:00:43.4]} 30. Rc7+ {[%clk 0:00:49]} 30...
Kb8 {[%clk 0:00:43.8]} 31. Rcd7 {[%clk 0:00:42.9]} 31... Rh8 {[%clk 0:00:38]}
32. Rc7 {[%clk 0:00:14.8]} 32... Rh1+ {[%clk 0:00:37]} 33. Rg1 {[%clk
0:00:13.8]} 33... Rxg1# {[%clk 0:00:37.2]} 0-1

[Event "Early-Titled-Tuesday-Blitz-October-10-2023"]
[Site "Chess.com"]
[Date "2023.10.10"]
[Round "11"]
[White "Zurability"]
[Black "ContrVersia"]
[Result "0-1"]
[WhiteElo "2720"]
[BlackElo "2890"]
[TimeControl "180+1"]
[EndTime "10:04:18 PDT"]
[Termination "ContrVersia won by resignation"]

1. Nf3 {[%clk 0:03:00.9]} 1... d5 {[%clk 0:02:57.9]} 2. g3 {[%clk 0:03:00.2]}
2... Nd7 {[%clk 0:02:57.9]} 3. d4 {[%clk 0:02:59.5]} 3... Nb6 {[%clk 0:02:58.2]}
4. Bg2 {[%clk 0:02:59.2]} 4... Nf6 {[%clk 0:02:58.7]} 5. O-O {[%clk 0:02:55.2]}
5... Bf5 {[%clk 0:02:58]} 6. Nh4 {[%clk 0:02:51.9]} 6... Bg4 {[%clk 0:02:55.9]}
7. Nc3 {[%clk 0:02:47.7]} 7... c6 {[%clk 0:02:54.9]} 8. Qd3 {[%clk 0:02:46.9]}
8... g6 {[%clk 0:02:47.1]} 9. e4 {[%clk 0:02:39.8]} 9... dxe4 {[%clk 0:02:45.8]}
10. Nxe4 {[%clk 0:02:40.7]} 10... Nxe4 {[%clk 0:02:43.7]} 11. Qxe4 {[%clk
0:02:37.9]} 11... Be6 {[%clk 0:02:42]} 12. c3 {[%clk 0:02:27.4]} 12... Bd5
{[%clk 0:02:37.7]} 13. Qe5 {[%clk 0:02:20.3]} 13... f6 {[%clk 0:02:34.2]} 14.
Qe3 {[%clk 0:02:11.5]} 14... Bg7 {[%clk 0:02:34]} 15. Re1 {[%clk 0:02:07.7]}
15... Qd7 {[%clk 0:02:24.9]} 16. Qe2 {[%clk 0:02:01.3]} 16... O-O {[%clk
0:02:18.6]} 17. Bxd5+ {[%clk 0:01:46.7]} 17... cxd5 {[%clk 0:02:17.5]} 18. Nf3
{[%clk 0:01:36.3]} 18... e5 {[%clk 0:02:17.6]} 19. dxe5 {[%clk 0:01:23.8]} 19...
fxe5 {[%clk 0:02:18.5]} 20. Be3 {[%clk 0:01:24.4]} 20... Nc4 {[%clk 0:02:14.8]}
21. Rad1 {[%clk 0:01:23.1]} 21... Qc6 {[%clk 0:02:11]} 22. Bc1 {[%clk
0:01:12.2]} 22... Rf5 {[%clk 0:02:02]} 23. Nh4 {[%clk 0:01:09.3]} 23... Rf7
{[%clk 0:02:01.9]} 24. Qd3 {[%clk 0:01:05.7]} 24... Rd8 {[%clk 0:01:45.6]} 25.
Ng2 {[%clk 0:01:00.4]} 25... Rdd7 {[%clk 0:01:42.5]} 26. f3 {[%clk 0:00:43.5]}
26... e4 {[%clk 0:01:41.3]} 27. fxe4 {[%clk 0:00:40.2]} 27... Ne5 {[%clk
0:01:41.6]} 28. exd5 {[%clk 0:00:32.4]} 28... Qb6+ {[%clk 0:01:41.3]} 29. Qe3
{[%clk 0:00:24.9]} 29... Nf3+ {[%clk 0:01:41.3]} 30. Kh1 {[%clk 0:00:25.1]}
30... Nxe1 {[%clk 0:01:41.5]} 31. Rxe1 {[%clk 0:00:21.4]} 31... Rxd5 {[%clk
0:01:36.5]} 32. Nf4 {[%clk 0:00:18.3]} 32... Re5 {[%clk 0:01:32.2]} 33. Qxb6
{[%clk 0:00:15.5]} 33... Rxe1+ {[%clk 0:01:32.3]} 34. Qg1 {[%clk 0:00:16.4]}
34... Rxg1+ {[%clk 0:01:32.7]} 35. Kxg1 {[%clk 0:00:17.3]} 35... Rd7 {[%clk
0:01:31.8]} 36. Kf2 {[%clk 0:00:16.8]} 36... Rd1 {[%clk 0:01:31.1]} 37. Be3
{[%clk 0:00:17.5]} 37... Ra1 {[%clk 0:01:28.8]} 38. a3 {[%clk 0:00:17.5]} 38...
Ra2 {[%clk 0:01:29.2]} 39. Nd3 {[%clk 0:00:17.9]} 39... Bxc3 {[%clk 0:01:28.7]}
40. Bc1 {[%clk 0:00:14.7]} 40... Bg7 {[%clk 0:01:23.6]} 41. Ke2 {[%clk
0:00:14.4]} 41... Kf7 {[%clk 0:01:21.9]} 42. Kd1 {[%clk 0:00:14.1]} 42... Ra1
{[%clk 0:01:22.3]} 43. Kc2 {[%clk 0:00:14.4]} 43... b6 {[%clk 0:01:21.8]} 44.
Nb4 {[%clk 0:00:10.9]} 44... Ke6 {[%clk 0:01:22]} 45. Nc6 {[%clk 0:00:11]} 45...
a5 {[%clk 0:01:22]} 46. Na7 {[%clk 0:00:09.8]} 46... Kd5 {[%clk 0:01:13.8]} 47.
Nc8 {[%clk 0:00:10]} 47... Bd4 {[%clk 0:01:14]} 48. Ne7+ {[%clk 0:00:09.1]}
48... Ke4 {[%clk 0:01:13.5]} 49. Nc6 {[%clk 0:00:09.2]} 49... Bc5 {[%clk
0:01:12.1]} 50. Na7 {[%clk 0:00:06.6]} 50... Kf3 {[%clk 0:01:10.6]} 51. Nb5
{[%clk 0:00:05.9]} 51... Kg2 {[%clk 0:01:10.7]} 0-1

[Event "Early-Titled-Tuesday-Blitz-October-10-2023"]
[Site "Chess.com"]
[Date "2023.10.10"]
[Round "11"]
[White "kleopl"]
[Black "secrethawk1"]
[Result "0-1"]
[WhiteElo "2455"]
[BlackElo "2321"]
[TimeControl "180+1"]
[EndTime "10:04:20 PDT"]
[Termination "secrethawk1 won by resignation"]

1. e4 {[%clk 0:03:00.9]} 1... c6 {[%clk 0:02:58.8]} 2. Nc3 {[%clk 0:03:00.2]}
2... d5 {[%clk 0:02:59.7]} 3. Qe2 {[%clk 0:03:00]} 3... dxe4 {[%clk 0:02:59.1]}
4. Nxe4 {[%clk 0:03:00.9]} 4... Nf6 {[%clk 0:02:59.5]} 5. g3 {[%clk 0:03:01.1]}
5... Nxe4 {[%clk 0:02:59.4]} 6. Qxe4 {[%clk 0:03:02]} 6... Be6 {[%clk
0:02:59.1]} 7. c4 {[%clk 0:02:56.6]} 7... Nd7 {[%clk 0:02:55.6]} 8. d4 {[%clk
0:02:54.2]} 8... Nf6 {[%clk 0:02:53.3]} 9. Qe3 {[%clk 0:02:54]} 9... Bf5 {[%clk
0:02:49.8]} 10. Bg2 {[%clk 0:02:33.8]} 10... e6 {[%clk 0:02:48.9]} 11. Ne2
{[%clk 0:02:28.5]} 11... Bb4+ {[%clk 0:02:48]} 12. Nc3 {[%clk 0:02:12.1]} 12...
O-O {[%clk 0:02:40.8]} 13. O-O {[%clk 0:02:09.9]} 13... a5 {[%clk 0:02:39.5]}
14. a3 {[%clk 0:02:08.4]} 14... Bxc3 {[%clk 0:02:36]} 15. Qxc3 {[%clk
0:02:09.3]} 15... Be4 {[%clk 0:02:35.5]} 16. f3 {[%clk 0:02:02.7]} 16... Bg6
{[%clk 0:02:33.8]} 17. Bg5 {[%clk 0:01:59.8]} 17... h6 {[%clk 0:02:32]} 18. Be3
{[%clk 0:01:59]} 18... b5 {[%clk 0:02:31.1]} 19. b3 {[%clk 0:01:53.5]} 19... a4
{[%clk 0:02:26.8]} 20. Rfd1 {[%clk 0:01:36.9]} 20... axb3 {[%clk 0:02:24.9]} 21.
Qxb3 {[%clk 0:01:32.4]} 21... bxc4 {[%clk 0:02:24.9]} 22. Qxc4 {[%clk
0:01:33.3]} 22... Nd5 {[%clk 0:02:24.4]} 23. Bf2 {[%clk 0:01:31.1]} 23... Qd6
{[%clk 0:02:20.6]} 24. f4 {[%clk 0:01:29.3]} 24... Rfb8 {[%clk 0:02:13.2]} 25.
Qc5 {[%clk 0:00:49.7]} 25... Qd7 {[%clk 0:01:59.4]} 26. Rdc1 {[%clk 0:00:44.8]}
26... Ra6 {[%clk 0:01:54.8]} 27. a4 {[%clk 0:00:43.4]} 27... h5 {[%clk
0:01:45.9]} 28. a5 {[%clk 0:00:42.3]} 28... Rb5 {[%clk 0:01:43]} 29. Qa3 {[%clk
0:00:34.4]} 29... Qa7 {[%clk 0:01:35]} 30. Bf1 {[%clk 0:00:25.6]} 30... Raxa5
{[%clk 0:01:19.7]} 31. Qd6 {[%clk 0:00:06.1]} 31... Rxa1 {[%clk 0:01:17.3]} 32.
Rxc6 {[%clk 0:00:04.9]} 32... Rb8 {[%clk 0:00:44.4]} 33. Ra6 {[%clk 0:00:04]}
33... Rxa6 {[%clk 0:00:43.4]} 34. Bxa6 {[%clk 0:00:04.9]} 34... Ra8 {[%clk
0:00:38.6]} 35. Bf1 {[%clk 0:00:04.2]} 35... Qa1 {[%clk 0:00:37.2]} 36. Qc6
{[%clk 0:00:04.3]} 36... Bd3 {[%clk 0:00:35]} 0-1